bitfinex-derivatives/quotes_BTCF0:USTF0_20240814
["timestamp","ask_amount","ask_price","bid_price","bid_amount"]
[1723656450412,0.61632189,59137.0,59136.0,0.0974012]
[1723656450817,0.70084489,59137.0,59136.0,0.0128772]
[1723656451120,0.61754006,59137.0,59128.0,0.3608]
[1723656451314,0.084534,59129.0,59128.0,0.3608]
[1723656451621,0.08468134,59129.0,59128.0,0.3608]
[1723656451818,0.33930592,59129.0,59128.0,0.3608]
[1723656452019,0.25477192,59129.0,59128.0,0.3608]
[1723656452219,0.25477192,59129.0,59128.0,0.445336]
[1723656452412,0.33930592,59129.0,59128.0,0.445336]
[1723656453210,0.25577192,59129.0,59128.0,1.352696]
[1723656453415,0.001,59137.0,59136.0,0.084524]
[1723656453625,0.001,59137.0,59136.0,0.445324]
[1723656453826,0.25467412,59137.0,59136.0,1.352644]
[1723656454520,0.084497,59155.0,59137.0,0.50728]
[1723656454725,0.084497,59155.0,59149.0,0.3608]
[1723656454926,0.084497,59155.0,59150.0,0.1491]
[1723656455123,0.001,59154.0,59150.0,0.1491]
[1723656455327,0.001,59154.0,59153.0,0.084499]
[1723656455515,0.001,59154.0,59153.0,0.591659]
[1723656455716,0.25477501,59158.0,59153.0,0.084499]
[1723656455914,0.084497,59155.0,59154.0,0.084498]
[1723656456125,0.65255366,59159.0,59149.0,0.3608]
[1723656456126,0.084501,59152.0,59149.0,0.3608]
[1723656456424,0.084505,59149.0,59145.0,0.01254302]
[1723656456727,0.445305,59149.0,59146.0,0.084509]
[1723656456931,0.69857634,59149.0,59146.0,0.084509]
[1723656457120,0.69857634,59149.0,59145.0,0.01254302]
[1723656457325,0.25327134,59149.0,59148.0,0.08476066]
[1723656457822,0.25280601,59153.0,59152.0,0.0845]
[1723656458019,0.3608,59154.0,59153.0,0.084499]
[1723656458225,0.08449,59160.0,59156.0,0.084494]
[1723656458530,0.37624466,59159.0,59156.0,0.084494]
[1723656458726,0.25320294,59157.0,59156.0,0.084494]
[1723656458928,0.25320294,59158.0,59148.0,0.00025366]
[1723656458929,0.084504,59150.0,59148.0,0.00025366]
[1723656459123,0.6523,59154.0,59148.0,0.08476066]
[1723656459318,0.25320294,59149.0,59148.0,0.00025366]
[1723656459524,0.61400294,59149.0,59148.0,0.00025366]
[1723656459828,0.445305,59149.0,59148.0,0.00025366]
[1723656460029,0.3608,59149.0,59148.0,0.08476066]
[1723656460226,0.20684205,59153.0,59148.0,0.00025366]
[1723656460425,0.3618,59154.0,59152.0,0.084501]
[1723656460926,0.2541619,59153.0,59152.0,0.084501]
[1723656461323,0.2541619,59153.0,59148.0,0.00025366]
[1723656461623,0.084505,59149.0,59148.0,0.00025366]
[1723656462021,0.33654557,59149.0,59148.0,0.00125366]
[1723656462633,0.33654557,59149.0,59148.0,0.08476066]
[1723656463017,0.33654557,59149.0,59148.0,0.00025366]
[1723656463338,0.33654557,59149.0,59148.0,0.00125366]
[1723656463527,0.42105057,59149.0,59148.0,0.00125366]
[1723656463723,0.42105057,59149.0,59136.0,0.084523]
[1723656463724,0.084521,59138.0,59136.0,0.084523]
[1723656463930,0.084521,59138.0,59137.0,0.37346757]
[1723656464135,0.084521,59138.0,59137.0,0.3608]
[1723656464831,0.33841686,59138.0,59137.0,0.3608]
[1723656466630,0.33841686,59138.0,59137.0,0.445322]
[1723656467330,0.33941686,59138.0,59137.0,0.445322]
[1723656467629,0.25489586,59138.0,59137.0,0.445322]
[1723656467833,0.25489586,59138.0,59137.0,1.352602]
[1723656468131,0.25489586,59138.0,59137.0,1.40276243]
[1723656468329,0.25489586,59138.0,59137.0,1.352602]
[1723656468521,0.25489586,59138.0,59137.0,0.57409953]
[1723656468825,0.25489586,59138.0,59137.0,1.49537953]
[1723656469027,0.25489586,59138.0,59137.0,1.09537953]
[1723656469525,0.25489586,59138.0,59137.0,1.49537953]
[1723656469722,0.25489586,59138.0,59137.0,0.58809953]
[1723656470437,0.25389586,59138.0,59137.0,0.58809953]
[1723656470631,0.19570809,59138.0,59137.0,0.58809953]
[1723656470931,0.3618,59138.0,59137.0,0.22729953]
[1723656471631,0.001,59138.0,59137.0,0.31389037]
[1723656471834,0.25467376,59138.0,59137.0,0.31389037]
[1723656472336,0.25467376,59138.0,59137.0,0.21329953]
[1723656472729,0.25467376,59138.0,59137.0,0.38305332]
[1723656473032,0.25467376,59138.0,59137.0,1.37485532]
[1723656473430,0.19495235,59138.0,59137.0,1.37485532]
[1723656473936,0.11040221,59138.0,59137.0,1.6440771]
[1723656474123,0.03994019,59138.0,59137.0,1.6440771]
[1723656474322,0.00201019,59138.0,59137.0,1.45937732]
[1723656474527,0.00201019,59138.0,59137.0,1.5768696]
[1723656474728,0.00201019,59138.0,59137.0,1.45937732]
[1723656474926,0.00025366,59143.0,59142.0,0.16903]
[1723656475127,0.1375,59163.0,59162.0,0.084487]
[1723656475335,0.084482,59166.0,59163.0,0.084485]
[1723656475628,0.084485,59163.0,59162.0,0.08389097]
[1723656475831,0.084488,59161.0,59159.0,0.08389097]
[1723656476232,0.25412514,59160.0,59159.0,0.084491]
[1723656478124,0.084487,59162.0,59160.0,0.084489]
[1723656478343,0.33745863,59162.0,59160.0,0.084489]
[1723656478839,0.084487,59162.0,59160.0,0.084489]
[1723656479239,0.25231997,59161.0,59154.0,0.0505741]
[1723656479631,0.25488169,59163.0,59162.0,0.084486]
[1723656480033,0.3608,59164.0,59162.0,0.084486]
[1723656480237,0.3608,59164.0,59163.0,0.084486]
[1723656480638,0.61444314,59164.0,59163.0,0.084486]
[1723656481331,0.69892714,59164.0,59163.0,0.084486]
[1723656482936,0.61444314,59164.0,59163.0,0.084486]
[1723656483130,0.25364314,59164.0,59163.0,1.076052]
[1723656483333,0.1365593,59164.0,59163.0,1.076052]
[1723656483537,0.00025366,59166.0,59165.0,0.084482]
[1723656483838,0.00025366,59166.0,59165.0,0.57398343]
[1723656484051,0.00025366,59166.0,59165.0,0.67448511]
[1723656484241,0.00025366,59166.0,59165.0,0.57398343]
[1723656484544,0.25427401,59166.0,59165.0,0.57398343]
[1723656485537,0.25427401,59166.0,59165.0,0.65846543]
[1723656485734,0.19511765,59166.0,59165.0,1.56550543]
[1723656486252,0.19511765,59166.0,59165.0,1.48102343]
[1723656486432,0.19511765,59166.0,59165.0,0.57398343]
[1723656486637,0.19511765,59166.0,59165.0,1.56551178]
[1723656487145,0.19511765,59166.0,59165.0,1.56551094]
[1723656487339,0.19511765,59166.0,59165.0,1.64914444]
[1723656487536,0.19511765,59166.0,59165.0,1.64914513]
[1723656488146,0.19511765,59166.0,59165.0,1.436804]
[1723656488347,0.19511765,59166.0,59165.0,1.5204375]
[1723656488547,0.19511765,59166.0,59165.0,1.436804]
[1723656489148,0.09692963,59181.0,59165.0,1.436804]
[1723656489149,0.766846,59191.0,59176.0,0.084465]
[1723656489350,0.3608,59191.0,59182.0,0.41091429]
[1723656489644,0.3608,59191.0,59190.0,0.084446]
[1723656490454,0.25225534,59191.0,59190.0,0.084446]
[1723656490841,0.1458,59194.0,59193.0,0.084442]
[1723656491049,0.00025344,59196.0,59195.0,0.084439]
[1723656491639,0.00025344,59196.0,59195.0,0.07599511]
[1723656491640,0.07420757,59196.0,59195.0,0.07599511]
[1723656492043,0.32904147,59196.0,59195.0,0.07599511]
[1723656492245,0.38086176,59196.0,59195.0,0.07599511]
[1723656492445,0.54823053,59196.0,59195.0,0.07599511]
[1723656492644,0.38086176,59196.0,59195.0,0.07599511]
[1723656493440,0.38086176,59196.0,59195.0,0.98279511]
[1723656493645,0.32904147,59196.0,59195.0,0.98279511]
[1723656493852,0.38085721,59196.0,59195.0,0.99582386]
[1723656494057,0.53136601,59196.0,59195.0,1.00482386]
[1723656494446,0.47955027,59196.0,59195.0,1.00482386]
[1723656494651,0.32904147,59196.0,59195.0,1.01582386]
[1723656495049,0.16736877,59198.0,59195.0,1.54550186]
[1723656495355,0.08318333,59198.0,59197.0,0.168872]
[1723656495561,0.03260434,59198.0,59196.0,0.827838]
[1723656495754,0.15043727,59206.0,59204.0,0.084426]
[1723656495965,0.29623727,59208.0,59205.0,0.3608]
[1723656496258,0.25386344,59206.0,59205.0,0.445225]
[1723656496451,0.16762221,59212.0,59206.0,0.591143]
[1723656496452,0.12056569,59207.0,59206.0,0.591143]
[1723656496652,0.16762221,59212.0,59211.0,0.084416]
[1723656496653,0.00025344,59212.0,59211.0,0.084416]
[1723656496858,0.00025344,59212.0,59211.0,0.445216]
[1723656497056,0.15735487,59212.0,59211.0,0.445216]
[1723656497250,0.04052223,59212.0,59211.0,1.351856]
[1723656497559,0.04052223,59212.0,59211.0,0.084416]
[1723656498558,0.15724365,59212.0,59211.0,0.084416]
[1723656498757,0.15724365,59212.0,59210.0,0.2915]
[1723656498758,0.4238,59217.0,59216.0,0.084409]
[1723656499062,0.1422,59217.0,59216.0,0.084409]
[1723656499259,0.1422,59217.0,59216.0,0.375909]
[1723656499260,0.25325721,59217.0,59216.0,0.375909]
[1723656499555,0.25325721,59217.0,59216.0,0.084409]
[1723656499759,0.3947293,59218.0,59216.0,0.084409]
[1723656499950,0.1422,59218.0,59216.0,0.09711811]
[1723656500150,0.2555293,59217.0,59216.0,0.09711811]
[1723656500553,0.003,59217.0,59216.0,0.09711811]
[1723656500873,0.25482617,59217.0,59216.0,0.084409]
[1723656501060,0.25482617,59217.0,59212.0,0.084415]
[1723656501362,0.25482617,59217.0,59204.0,0.6523]
[1723656501363,0.084412,59214.0,59204.0,0.36244]
[1723656501660,0.084412,59214.0,59204.0,0.3608]
[1723656501857,0.25413392,59213.0,59204.0,0.3608]
[1723656502253,0.2912,59212.0,59209.0,0.084418]
[1723656502555,0.2912,59212.0,59200.0,0.084431]
[1723656502556,0.652,59212.0,59200.0,0.084431]
[1723656502765,0.25295041,59211.0,59200.0,0.084431]
[1723656502956,0.25295041,59211.0,59198.0,0.36244]
[1723656502957,0.25295041,59211.0,59201.0,0.08468344]
[1723656503160,0.084423,59207.0,59204.0,0.01]
[1723656503364,0.25295041,59211.0,59206.0,0.084423]
[1723656503562,0.25295041,59206.0,59204.0,0.01]
[1723656503760,0.25295041,59206.0,59201.0,0.00025344]
[1723656503961,0.2549675,59209.0,59208.0,0.084421]
[1723656504362,0.2549675,59205.0,59204.0,0.084426]
[1723656504559,0.3393925,59205.0,59201.0,0.08468344]
[1723656504861,0.1364,59204.0,59201.0,0.08468344]
[1723656505060,0.38844526,59204.0,59201.0,0.08468344]
[1723656505962,0.38844526,59204.0,59201.0,0.09468344]
[1723656506658,0.38844526,59204.0,59201.0,0.08968344]
[1723656507254,0.38844526,59204.0,59201.0,0.09168344]
[1723656507859,0.38844526,59204.0,59201.0,0.08968344]
[1723656508964,0.38844526,59204.0,59201.0,0.08468344]
[1723656509163,0.38844526,59204.0,59201.0,0.08868344]
[1723656509370,0.38844526,59204.0,59201.0,0.08968344]
[1723656510663,0.38844526,59204.0,59201.0,0.08868344]
[1723656510969,0.47287226,59204.0,59201.0,0.08868344]
[1723656511565,0.47287226,59204.0,59202.0,0.084429]
[1723656512665,0.47287226,59204.0,59202.0,0.13454329]
[1723656513062,0.47287226,59204.0,59202.0,0.13654329]
[1723656513261,0.41374597,59204.0,59202.0,0.13654329]
[1723656513472,0.084428,59203.0,59202.0,0.13654329]
[1723656513668,0.084428,59203.0,59202.0,0.13644048]
[1723656513866,0.33620642,59203.0,59202.0,0.13644048]
[1723656514463,0.33620642,59203.0,59202.0,0.086429]
[1723656514665,0.33620642,59203.0,59202.0,0.092429]
[1723656515061,0.33620642,59203.0,59202.0,0.14247392]
[1723656515464,0.33620642,59203.0,59202.0,0.084429]
[1723656515875,0.33620642,59203.0,59202.0,0.085429]
[1723656516067,0.6630739,59203.0,59194.0,0.08352382]
[1723656516366,0.084437,59197.0,59196.0,0.05006875]
[1723656516570,0.3608,59198.0,59194.0,0.06675833]
[1723656516571,0.08444,59195.0,59194.0,0.06675833]
[1723656516772,0.084441,59194.0,59193.0,0.06675833]
[1723656517177,0.3387666,59194.0,59193.0,0.06675833]
[1723656517567,0.084444,59192.0,59191.0,0.16796782]
[1723656517869,0.084444,59192.0,59191.0,0.08352382]
[1723656518061,0.16889,59191.0,59190.0,0.08352382]
[1723656518261,0.1353,59191.0,59190.0,0.06686971]
[1723656518464,0.084448,59189.0,59188.0,0.06686971]
[1723656518767,0.64214,59191.0,59184.0,0.08377105]
[1723656518768,0.08445,59188.0,59186.0,0.06686971]
[1723656518966,0.44525,59188.0,59187.0,0.084451]
[1723656519169,0.3608,59188.0,59187.0,0.15132071]
[1723656519564,0.61374761,59188.0,59187.0,0.15132071]
[1723656519762,0.61374761,59188.0,59187.0,0.084451]
[1723656520362,0.20225231,59188.0,59187.0,0.29758357]
[1723656520762,0.14311413,59188.0,59187.0,0.65838357]
[1723656520972,0.0586338,59188.0,59187.0,0.81498898]
[1723656521375,0.00025344,59199.0,59198.0,0.084435]
[1723656521771,0.00025344,59199.0,59198.0,0.52885342]
[1723656521969,0.00025344,59199.0,59198.0,0.445235]
[1723656522372,0.15471362,59199.0,59198.0,0.445235]
[1723656522571,0.15471362,59199.0,59198.0,0.65749859]
[1723656522976,0.15471362,59199.0,59198.0,1.03343359]
[1723656523172,0.01160341,59199.0,59198.0,0.94981517]
[1723656523569,0.01160341,59199.0,59198.0,1.41195728]
[1723656523785,0.01160341,59199.0,59198.0,1.31161517]
[1723656524277,0.01160341,59199.0,59198.0,2.21837517]
[1723656524774,0.00025344,59204.0,59203.0,0.084428]
[1723656524973,0.00025344,59204.0,59203.0,1.03422917]
[1723656525281,0.25488367,59211.0,59210.0,0.084418]
[1723656525480,0.084403,59221.0,59210.0,0.78094517]
[1723656525774,0.25238256,59219.0,59216.0,0.06680729]
[1723656525978,0.33679056,59217.0,59216.0,0.06680729]
[1723656526171,0.08441,59216.0,59215.0,0.06680729]
[1723656526573,0.23021,59216.0,59215.0,0.06680729]
[1723656527274,0.48259256,59216.0,59215.0,0.06680729]
[1723656527673,0.25238256,59216.0,59215.0,0.06680729]
[1723656528381,0.2101584,59216.0,59215.0,0.15121829]
[1723656528581,0.3376874,59219.0,59216.0,0.08441]
[1723656528782,0.3376874,59219.0,59218.0,0.05011133]
[1723656529179,0.2532814,59219.0,59218.0,0.084407]
[1723656529876,0.00025344,59223.0,59222.0,0.084401]
[1723656530279,0.25476931,59223.0,59222.0,0.084401]
[1723656530483,0.25476931,59223.0,59222.0,0.445201]
[1723656530672,0.25476931,59223.0,59222.0,0.15119128]
[1723656530872,0.25476931,59223.0,59222.0,0.084401]
[1723656531181,0.25476931,59223.0,59222.0,0.15119128]
[1723656531378,0.25476931,59223.0,59222.0,0.37203723]
[1723656531585,0.084405,59219.0,59218.0,0.05006583]
[1723656531780,0.3608,59222.0,59217.0,0.41086583]
[1723656532077,0.25283244,59219.0,59218.0,0.084407]
[1723656532480,0.3608,59222.0,59217.0,0.445208]
[1723656532782,0.084403,59221.0,59220.0,0.05007189]
[1723656532978,0.33685447,59221.0,59219.0,0.05007189]
[1723656533178,0.084404,59220.0,59219.0,0.05007189]
[1723656533371,0.084406,59219.0,59218.0,0.13547789]
[1723656533978,0.084406,59219.0,59218.0,0.085406]
[1723656533979,0.230106,59219.0,59218.0,0.085406]
[1723656535177,0.25245147,59220.0,59219.0,0.084405]
[1723656536085,0.084403,59221.0,59220.0,0.084404]
[1723656536273,0.33852996,59221.0,59220.0,0.084404]
[1723656536778,0.084403,59221.0,59220.0,0.084404]
[1723656537085,0.084405,59219.0,59218.0,0.001]
[1723656537280,0.16881,59219.0,59218.0,0.001]
[1723656537481,0.7843423,59219.0,59218.0,0.001]
[1723656537682,0.7843423,59219.0,59212.0,0.00025344]
[1723656537683,0.084414,59213.0,59212.0,0.00025344]
[1723656537881,0.445214,59213.0,59212.0,0.00025344]
[1723656538083,0.69898832,59213.0,59212.0,0.00025344]
[1723656540288,0.33818832,59213.0,59212.0,0.08566944]
[1723656540486,0.42216975,59213.0,59212.0,0.08566944]
[1723656541481,0.33775575,59213.0,59212.0,0.08566944]
[1723656541884,0.25377432,59213.0,59212.0,0.08566944]
[1723656542291,0.25302898,59215.0,59214.0,0.084412]
[1723656542683,0.08398143,59216.0,59215.0,0.084411]
[1723656543593,0.33578587,59216.0,59215.0,0.084411]
[1723656543790,0.25180444,59216.0,59215.0,0.084411]
[1723656543987,0.25180444,59216.0,59212.0,0.00125344]
[1723656543988,0.084414,59213.0,59212.0,0.00125344]
[1723656544288,0.168828,59213.0,59212.0,0.00025344]
[1723656544485,0.33627834,59213.0,59212.0,0.00025344]
[1723656545290,0.33627834,59213.0,59212.0,0.08466944]
[1723656545489,0.25186434,59213.0,59212.0,0.08466944]
[1723656545906,0.001,59215.0,59213.0,0.084413]
[1723656546396,0.25173911,59214.0,59213.0,0.084413]
[1723656546688,0.33615211,59214.0,59213.0,0.084413]
[1723656547887,0.084414,59213.0,59212.0,0.00025344]
[1723656548081,0.529628,59213.0,59212.0,0.00025344]
[1723656548280,0.78268521,59213.0,59212.0,0.00025344]
[1723656548686,0.69827121,59213.0,59212.0,0.00125344]
[1723656549684,0.69827121,59213.0,59204.0,0.05007189]
[1723656549685,0.80827121,59213.0,59204.0,0.05007189]
[1723656549893,0.08443,59202.0,59201.0,0.08443]
[1723656550282,0.33940031,59202.0,59195.0,0.3608]
[1723656550490,0.3608,59199.0,59193.0,0.05005412]
[1723656550685,0.3608,59194.0,59192.0,0.05005412]
[1723656550880,0.084443,59193.0,59192.0,0.13449812]
[1723656551090,0.3608,59194.0,59193.0,0.084443]
[1723656551288,0.084439,59196.0,59195.0,0.08444]
[1723656551792,0.084441,59194.0,59193.0,0.011]
[1723656552089,0.445241,59194.0,59193.0,0.06105412]
[1723656552487,0.445241,59194.0,59193.0,0.011]
[1723656552888,0.69703961,59194.0,59193.0,0.06100549]
[1723656553097,0.25179861,59194.0,59193.0,0.14544849]
[1723656553388,0.25179861,59194.0,59193.0,0.084443]
[1723656553594,0.33888144,59196.0,59195.0,0.084439]
[1723656553786,0.084438,59196.0,59195.0,0.084439]
[1723656553986,0.084443,59193.0,59192.0,0.04995104]
[1723656554187,0.445243,59193.0,59192.0,0.04995104]
[1723656554382,0.61346985,59193.0,59190.0,0.00025344]
[1723656555190,0.084446,59191.0,59190.0,0.00025344]
[1723656555692,0.33693272,59191.0,59190.0,0.00025344]
[1723656556991,0.33693272,59191.0,59190.0,0.00725344]
[1723656557788,0.33693272,59191.0,59190.0,0.00025344]
[1723656558099,0.33793272,59191.0,59190.0,0.02025344]
[1723656558298,0.33793272,59191.0,59190.0,0.10470044]
[1723656559695,0.25348672,59191.0,59190.0,0.10470044]
[1723656561399,0.25348672,59191.0,59190.0,0.18914744]
[1723656561602,0.19210076,59191.0,59190.0,1.14593848]
[1723656561897,0.19210076,59191.0,59190.0,1.18043444]
[1723656562101,0.15809076,59191.0,59190.0,1.18043444]
[1723656562301,0.10740785,59191.0,59190.0,1.24722472]
[1723656562693,0.10740785,59191.0,59190.0,1.18043444]
[1723656562890,0.10740785,59191.0,59190.0,1.24688542]
[1723656563290,0.10740785,59191.0,59190.0,1.18043444]
[1723656563905,0.04046101,59191.0,59190.0,1.18043444]
[1723656564402,0.3216,59214.0,59213.0,0.084414]
[1723656564606,0.3216,59214.0,59202.0,0.084429]
[1723656564607,0.44521,59216.0,59214.0,0.084412]
[1723656564812,0.44521,59216.0,59215.0,0.084412]
[1723656565312,0.49540456,59216.0,59215.0,0.084412]
[1723656565811,0.41099456,59216.0,59215.0,0.084412]
[1723656567905,0.05019456,59216.0,59215.0,0.084412]
[1723656568109,0.05019456,59216.0,59215.0,0.085412]
[1723656568312,0.06319456,59216.0,59215.0,0.086412]
[1723656568525,0.013,59216.0,59215.0,0.086412]
[1723656568729,0.013,59216.0,59215.0,0.60390207]
[1723656568933,0.26579489,59216.0,59215.0,0.60390207]
[1723656569623,0.26579489,59216.0,59215.0,0.09726207]
[1723656570132,0.26679489,59216.0,59215.0,0.09626207]
[1723656571429,0.26679489,59216.0,59215.0,0.54147407]
[1723656571833,0.25579489,59216.0,59215.0,0.54047407]
[1723656572422,0.25579489,59216.0,59215.0,1.44711407]
[1723656572624,0.25379489,59216.0,59215.0,1.44711407]
[1723656573327,0.25579489,59216.0,59215.0,1.44711407]
[1723656574129,0.21357534,59216.0,59215.0,1.49694527]
[1723656574337,0.21357534,59216.0,59215.0,1.09694527]
[1723656574629,0.21357534,59216.0,59215.0,1.04711407]
[1723656575034,0.21357534,59216.0,59215.0,1.09694527]
[1723656575220,0.21357534,59216.0,59215.0,1.49694527]
[1723656575427,0.21357534,59216.0,59215.0,1.67152607]
[1723656575428,0.14165986,59216.0,59215.0,1.67152607]
[1723656576531,0.14165986,59216.0,59215.0,1.18711407]
[1723656576733,0.14165986,59216.0,59215.0,1.23682582]
[1723656576927,0.11064986,59216.0,59215.0,1.63682582]
[1723656577229,0.11064986,59216.0,59215.0,1.58711407]
[1723656577631,0.11064986,59216.0,59215.0,1.67152607]
[1723656577826,0.11064986,59216.0,59215.0,1.58711407]
[1723656578026,0.11064986,59216.0,59215.0,1.18711407]
[1723656578231,0.11064986,59216.0,59215.0,1.23682156]
[1723656578424,0.11064986,59216.0,59215.0,1.18711407]
[1723656578934,0.11064986,59216.0,59215.0,0.63114093]
[1723656579134,0.11064986,59216.0,59215.0,0.45606207]
[1723656579323,0.11064986,59216.0,59215.0,0.5901761]
[1723656579530,0.11064986,59216.0,59215.0,0.54047407]
[1723656579832,0.11064986,59216.0,59215.0,1.04711407]
[1723656580436,0.11064986,59216.0,59215.0,1.0968161]
[1723656580630,0.11064986,59216.0,59215.0,1.04711407]
[1723656581027,0.11064986,59216.0,59215.0,1.0968161]
[1723656581224,0.11064986,59216.0,59215.0,1.04711407]
[1723656583239,0.11064986,59216.0,59215.0,0.45606207]
[1723656588833,0.11064986,59216.0,59215.0,0.54047407]
[1723656589336,0.11064986,59216.0,59215.0,0.60693075]
[1723656589532,0.11064986,59216.0,59215.0,0.54047407]
[1723656589731,0.10059987,59216.0,59215.0,0.54047407]
[1723656589935,0.08371086,59216.0,59215.0,0.54047407]
[1723656590330,0.08371086,59216.0,59215.0,0.45606207]
[1723656591138,0.06355188,59216.0,59215.0,0.54047407]
[1723656591336,0.05268488,59216.0,59215.0,1.04711407]
[1723656591541,0.05268488,59216.0,59215.0,1.17570722]
[1723656591733,0.00025344,59221.0,59220.0,0.16881]
[1723656591937,0.00025344,59221.0,59220.0,0.82111]
[1723656592130,0.2530129,59221.0,59220.0,0.82111]
[1723656592941,0.2530129,59221.0,59220.0,1.41093245]
[1723656593238,0.2530129,59221.0,59220.0,1.32771]
[1723656593431,0.2530129,59221.0,59220.0,1.45729601]
[1723656593637,0.23061984,59221.0,59220.0,1.45729601]
[1723656594246,0.17196345,59221.0,59220.0,1.55819602]
[1723656594546,0.13748345,59221.0,59220.0,1.94270101]
[1723656596247,0.13748345,59221.0,59220.0,2.04261777]
[1723656596436,0.13748345,59221.0,59220.0,1.94270101]
[1723656598441,0.10657345,59221.0,59220.0,1.94270101]
[1723656598637,0.09857345,59221.0,59220.0,1.94270101]
[1723656600039,0.09857345,59221.0,59220.0,1.65120101]
[1723656600348,0.09857345,59221.0,59220.0,0.95169601]
[1723656600646,0.09857345,59221.0,59220.0,1.05168615]
[1723656601036,0.09857345,59221.0,59220.0,0.96728115]
[1723656601633,0.09857345,59221.0,59220.0,1.05168615]
[1723656602947,0.03492345,59221.0,59220.0,0.95169601]
[1723656603838,0.03492345,59221.0,59220.0,0.86729117]
[1723656604144,0.03492345,59221.0,59220.0,0.95169617]
[1723656605342,0.03492345,59221.0,59220.0,0.95169599]
[1723656605733,0.00265345,59221.0,59220.0,0.95169599]
[1723656605943,0.00265345,59221.0,59220.0,1.99829599]
[1723656606142,0.25665786,59221.0,59220.0,2.08270099]
[1723656606542,0.25665786,59221.0,59220.0,1.99829599]
[1723656606749,0.25665786,59221.0,59220.0,2.08270099]
[1723656607047,0.19333786,59221.0,59220.0,2.08270099]
[1723656607342,0.19333786,59221.0,59220.0,1.78274208]
[1723656607343,0.14833786,59221.0,59220.0,1.78274208]
[1723656607549,0.00016639,59226.0,59225.0,0.253194]
[1723656607742,0.00016639,59226.0,59225.0,0.91761581]
[1723656607946,0.25337642,59226.0,59225.0,0.91761581]
[1723656608249,0.22145642,59226.0,59225.0,0.917615]
[1723656608440,0.21445642,59226.0,59225.0,0.917615]
[1723656609038,0.21445642,59226.0,59225.0,0.7425635]
[1723656609238,0.21445642,59226.0,59225.0,0.9176124]
[1723656609442,0.21445642,59226.0,59225.0,0.8332144]
[1723656610638,0.22245642,59226.0,59225.0,0.8342144]
[1723656610845,0.22245642,59226.0,59225.0,0.83410159]
[1723656611137,0.22245642,59226.0,59225.0,0.70553209]
[1723656611345,0.22245642,59226.0,59225.0,0.75081796]
[1723656611745,0.22245642,59226.0,59225.0,0.85085905]
[1723656611946,0.22245642,59226.0,59225.0,0.75081796]
[1723656612344,0.22245642,59226.0,59225.0,0.76194564]
[1723656612651,0.22245642,59226.0,59225.0,0.8619905]
[1723656612855,0.22245642,59226.0,59225.0,0.76194941]
[1723656613060,0.22245642,59226.0,59225.0,0.58689674]
[1723656613345,0.22245642,59226.0,59225.0,0.76195571]
[1723656613651,0.22245642,59226.0,59225.0,0.7166918]
[1723656613952,0.22245642,59226.0,59225.0,0.84527533]
[1723656614137,0.30685242,59226.0,59225.0,0.18818665]
[1723656614338,0.30685242,59226.0,59216.0,1e-08]
[1723656614339,0.50656,59225.0,59216.0,1e-08]
[1723656614543,0.3608,59221.0,59218.0,0.06665522]
[1723656614737,0.3608,59221.0,59210.0,0.10029453]
[1723656614738,0.1405,59220.0,59217.0,0.06665522]
[1723656614941,0.084407,59218.0,59217.0,0.06665522]
[1723656615140,0.6559,59219.0,59214.0,0.06665522]
[1723656615347,0.6559,59219.0,59210.0,0.00025344]
[1723656615348,0.3608,59215.0,59210.0,0.06690866]
[1723656615543,0.084417,59211.0,59210.0,0.05024503]
[1723656615743,0.084417,59211.0,59210.0,0.00025344]
[1723656616252,0.25209431,59211.0,59210.0,0.00025344]
[1723656616755,0.00088,59215.0,59210.0,0.00025344]
[1723656616947,0.084413,59215.0,59210.0,0.00225344]
[1723656617144,0.3608,59214.0,59210.0,0.00225344]
[1723656617348,0.2522842,59211.0,59210.0,0.00525344]
[1723656618155,0.3367012,59211.0,59210.0,0.00525344]
[1723656618555,0.3367012,59211.0,59210.0,0.00325344]
[1723656619153,0.3377012,59211.0,59210.0,0.00325344]
[1723656619963,0.001,59211.0,59210.0,0.08767244]
[1723656620259,0.25533891,59211.0,59210.0,0.08767244]
[1723656620745,0.25533891,59211.0,59210.0,0.08467244]
[1723656621053,0.25533891,59211.0,59210.0,0.00325344]
[1723656621054,0.25633891,59211.0,59210.0,0.00325344]
[1723656621261,1.25043591,59211.0,59210.0,0.00325344]
[1723656621552,1.56651891,59211.0,59192.0,0.41079159]
[1723656621753,0.084446,59191.0,59189.0,0.09529483]
[1723656621956,0.70590658,59190.0,59189.0,0.01084583]
[1723656622156,0.70590658,59190.0,59189.0,0.084449]
[1723656622157,0.87571042,59190.0,59189.0,0.084449]
[1723656622547,0.62145958,59190.0,59189.0,0.084449]
[1723656622960,0.87571042,59190.0,59189.0,0.084449]
[1723656623157,0.87571042,59190.0,59189.0,0.098449]
[1723656623357,0.87571042,59190.0,59189.0,0.10965993]
[1723656623560,0.87571042,59190.0,59184.0,0.00043735]
[1723656623855,0.3608,59185.0,59184.0,0.00043735]
[1723656624248,0.61280731,59185.0,59184.0,0.00043735]
[1723656624751,0.25200731,59185.0,59184.0,0.08489335]
[1723656624947,0.25200731,59185.0,59184.0,0.39039335]
[1723656625158,0.08445,59188.0,59184.0,0.30593735]
[1723656625357,0.084454,59186.0,59184.0,0.01443735]
[1723656625559,0.25367183,59185.0,59184.0,0.01443735]
[1723656625760,0.25367183,59185.0,59184.0,0.08489335]
[1723656625955,0.25367183,59185.0,59184.0,0.09089335]
[1723656626458,0.25367183,59185.0,59184.0,0.08489335]
[1723656626664,0.25367183,59187.0,59186.0,0.084453]
[1723656626961,0.1488,59189.0,59186.0,0.084453]
[1723656627156,0.25448633,59188.0,59186.0,0.084453]
[1723656627349,0.1488,59189.0,59187.0,0.084452]
[1723656627549,0.1488,59189.0,59188.0,0.08445]
[1723656627758,0.26165958,59190.0,59189.0,0.084449]
[1723656628263,0.26065958,59190.0,59189.0,0.084449]
[1723656628557,0.26065958,59190.0,59186.0,0.008]
[1723656628759,0.084455,59185.0,59184.0,0.00043735]
[1723656629063,0.085455,59185.0,59184.0,0.00843735]
[1723656629261,1.24684799,59185.0,59184.0,0.00843735]
[1723656629563,0.84684799,59185.0,59184.0,0.00843735]
[1723656629963,0.84584799,59185.0,59184.0,0.00043735]
[1723656630664,0.84584799,59185.0,59184.0,0.08489335]
[1723656630665,0.25451299,59185.0,59184.0,0.08489335]
[1723656631161,0.3608,59187.0,59186.0,0.084453]
[1723656632249,0.25194445,59186.0,59185.0,0.3608]
[1723656632452,0.25194445,59186.0,59185.0,0.445254]
[1723656632654,0.1488,59198.0,59185.0,0.3608]
[1723656632655,0.25483504,59194.0,59185.0,0.3608]